bitfinex/quotes_SOLUSD_20260211
["timestamp","ask_amount","ask_price","bid_price","bid_amount"]
[1770788212848,1.05435785,82.079,82.053,12.18710251]
[1770788215371,9.7804769,82.07,82.031,42.66679669]
[1770788215844,1.05435785,82.077,82.031,42.66679669]
[1770788216046,9.7804769,82.07,82.031,42.66679669]
[1770788218457,1.05435785,82.077,82.031,42.66679669]
[1770788218971,1.05435785,82.077,82.03,9.79109454]
[1770788219172,9.79109454,82.07,82.03,9.79109454]
[1770788219568,1.05435785,82.077,82.03,9.79109454]
[1770788219961,1.05435785,82.069,82.022,60.95890487]
[1770788220273,1.05435785,82.079,82.03,9.79109454]
[1770788220970,1.05435785,82.079,82.022,60.95890487]
[1770788220971,1.05435785,82.089,82.051,42.65639662]
[1770788221375,1.05435785,82.099,82.051,42.65639662]
[1770788221580,9.79109454,82.09,82.051,42.65639662]
[1770788221872,1.05435785,82.091,82.051,42.65639662]
[1770788222073,1.05435785,82.089,82.051,42.65639662]
[1770788222375,1.05435785,82.079,82.051,42.65639662]
[1770788223164,1.05435785,82.059,82.034,12.18995468]
[1770788223352,1.05435785,82.059,82.043,12.1886369]
[1770788224078,1.05435785,82.069,82.043,12.1886369]
[1770788224474,1.05435785,82.069,82.049,12.18783897]
[1770788225275,1.05435785,82.059,82.031,42.66679669]
[1770788227277,1.05435785,82.059,82.021,42.67199862]
[1770788228769,1.05435785,82.066,82.021,42.67199862]
[1770788230083,1.05435785,82.049,82.021,42.67199862]
[1770788231171,1.05435785,82.059,82.021,42.67199862]
[1770788231372,9.79109454,82.05,82.021,30.47999902]
[1770788231669,1.05435785,82.052,82.021,30.47999902]
[1770788232058,1.05435785,82.049,82.021,30.47999902]
[1770788233688,1.05435785,82.059,82.03,9.79109454]
[1770788233882,1.05435785,82.069,82.03,9.79109454]
[1770788234065,1.05435785,82.069,82.021,30.47999902]
[1770788234462,1.05435785,82.069,82.03,9.79109454]
[1770788235384,1.05435785,82.069,82.031,42.66679669]
[1770788237586,1.05435785,82.069,82.03,9.79109454]
[1770788238767,9.79109454,82.1,82.061,0.90579863]
[1770788238967,9.79109454,82.09,82.054,37.5]
[1770788239270,9.79109454,82.09,82.049,37.52]
[1770788239570,9.79109454,82.09,82.052,0.90495649]
[1770788239778,9.79109454,82.1,82.061,0.90495649]
[1770788240172,9.79109454,82.1,82.063,0.90330994]
[1770788240778,5.13032502,82.126,82.051,42.65639662]
[1770788240779,0.91484599,82.117,82.071,0.90330994]
[1770788241096,0.91484599,82.109,82.073,0.90249732]
[1770788241269,0.91484599,82.109,82.081,0.90249732]
[1770788241470,0.91484599,82.116,82.09,9.79109454]
[1770788241671,0.91484599,82.116,82.091,12.18160334]
[1770788243489,0.91484599,82.116,82.092,0.90090999]
[1770788243675,0.91484599,82.124,82.1,9.79109454]
[1770788244375,0.95431047,82.139,82.11,9.79109454]
[1770788244773,0.95431047,82.139,82.111,0.89858539]
[1770788244973,30.42434597,82.172,82.12,9.79109454]
[1770788244974,0.95431047,82.149,82.12,9.79109454]
[1770788245174,0.95431047,82.149,82.093,47.76489799]
[1770788245175,0.95431047,82.159,82.14,9.79109454]
[1770788245681,1.15431047,82.17,82.14,10.68967993]
[1770788245877,0.95431047,82.159,82.128,30.440104]
[1770788246084,0.95431047,82.159,82.139,12.17435791]
[1770788246289,0.95431047,82.159,82.141,12.17418828]
[1770788247390,0.95431047,82.159,82.13,10.68816354]
[1770788247692,0.95431047,82.159,82.13,9.79109454]
[1770788247896,0.95431047,82.159,82.131,0.89631298]
[1770788248894,0.95431047,82.159,82.13,9.79109454]
[1770788249278,0.95431047,82.159,82.131,0.89558099]
[1770788249478,0.95431047,82.159,82.132,12.17552232]
[1770788250593,0.95431047,82.159,82.133,0.89485286]
[1770788251172,0.95431047,82.159,82.132,12.17552232]
[1770788252279,0.95431047,82.166,82.141,0.89342168]
[1770788252680,0.2,82.17,82.151,0.93259907]
[1770788253014,1e-08,82.17,82.161,0.93259907]
[1770788253302,1e-08,82.17,82.16,9.79109454]
[1770788253484,1e-08,82.17,82.15,10.72369361]
[1770788253688,1e-08,82.17,82.153,0.93259907]
[1770788253996,1e-08,82.17,82.161,0.93259907]
[1770788254679,1e-08,82.17,82.16,9.79109454]
[1770788255495,1e-08,82.17,82.161,0.93259907]
[1770788255678,1e-08,82.17,82.163,0.93259907]
[1770788255878,0.95431047,82.19,82.17,9.79109454]
[1770788256075,0.95431047,82.206,82.17,10.72369361]
[1770788256279,0.95431047,82.206,82.18,9.79109454]
[1770788256677,0.95431047,82.206,82.18,10.72369361]
[1770788257280,0.2,82.22,82.201,0.93259907]
[1770788257503,0.2,82.22,82.21,9.79109454]
[1770788257686,1.15431047,82.23,82.211,12.16382235]
[1770788258104,1.15431047,82.23,82.206,12.16452456]
[1770788258304,0.2,82.23,82.22,9.79109454]
[1770788258495,0.2,82.24,82.22,9.79109454]
[1770788258697,0.2,82.24,82.221,0.93259907]
[1770788259003,1.15431047,82.24,82.212,0.93259907]
[1770788259305,0.95431047,82.238,82.203,12.16490636]
[1770788259506,0.95431047,82.238,82.21,9.79109454]
[1770788260193,0.95431047,82.238,82.21,10.72369361]
[1770788260398,0.2,82.24,82.22,9.79109454]
[1770788260587,0.95431047,82.239,82.211,12.16382235]
[1770788260993,0.2,82.24,82.23,9.79109454]
[1770788261200,0.2,82.24,82.22,10.72369361]
[1770788261408,0.2,82.24,82.221,0.93259907]
[1770788261707,0.95431047,82.238,82.21,21.95498648]
[1770788261911,0.95431047,82.238,82.21,12.16389194]
[1770788262209,0.95431047,82.238,82.21,21.95498648]
[1770788263516,0.2,82.24,82.211,0.93259907]
[1770788263685,0.2,82.24,82.221,0.93259907]
[1770788264209,0.2,82.24,82.21,12.16389194]
[1770788264210,0.2,82.24,82.23,9.79109454]
[1770788264386,1.15431047,82.24,82.22,9.79109454]
[1770788264713,0.95431047,82.238,82.205,12.16464006]
[1770788265008,9.99109454,82.24,82.222,12.16219503]
[1770788265009,0.2,82.24,82.222,12.16219503]
[1770788265185,1e-08,82.24,82.23,9.79109454]
[1770788265383,1e-08,82.24,82.222,13.0947941]
[1770788265584,1e-08,82.24,82.223,0.93259907]
[1770788266313,1e-08,82.24,82.224,12.1618992]
[1770788266689,1e-08,82.24,82.23,9.79109454]
[1770788266994,1e-08,82.24,82.225,0.93259907]
[1770788267196,0.95431047,82.239,82.211,0.93259907]
[1770788267584,0.95431047,82.239,82.21,9.79109454]
[1770788268112,0.95431047,82.239,82.211,0.93259907]
[1770788268421,0.95431047,82.237,82.209,12.16406533]
[1770788268601,0.95431047,82.237,82.21,9.79109454]
[1770788268908,0.95431047,82.237,82.211,0.93259907]
[1770788269288,1e-08,82.24,82.22,9.79109454]
[1770788269495,1e-08,82.24,82.221,0.93259907]
[1770788270205,1e-08,82.24,82.213,0.97170958]
[1770788270507,1e-08,82.24,82.22,9.79109454]
[1770788270891,0.91673065,82.239,82.212,12.1636744]
[1770788271112,0.91673065,82.239,82.147,5.36086188]
[1770788271113,0.91673065,82.229,82.195,0.97170958]
[1770788271410,0.91673065,82.229,82.198,12.1656177]
[1770788271919,0.91673065,82.219,82.183,0.97170958]
[1770788272123,1e-08,82.24,82.161,0.97170958]
[1770788272124,0.91673065,82.199,82.161,0.97170958]
[1770788272402,0.91673065,82.198,82.162,12.17107665]
[1770788272609,0.91673065,82.189,82.162,12.17107665]
[1770788273313,0.91673065,82.189,82.157,12.17177812]
[1770788274192,0.91673065,82.179,82.145,0.97170958]
[1770788274387,0.91673065,82.179,82.15,9.79109454]
[1770788274812,0.91673065,82.179,82.15,9.76656933]
[1770788275116,0.91673065,82.177,82.146,13.14515685]
[1770788275291,0.91673065,82.177,82.146,12.17344727]
[1770788276305,0.91673065,82.177,82.15,9.76656933]
[1770788277213,0.91673065,82.189,82.151,42.60447224]
[1770788277615,12.16669083,82.192,82.146,12.17341005]
[1770788277616,0.91673065,82.169,82.146,12.17341005]
[1770788278497,0.91673065,82.169,82.15,12.17276952]
[1770788279215,0.91673065,82.169,82.141,12.17418828]
[1770788279513,30.41658555,82.192,82.141,12.17418828]
[1770788279514,0.91673065,82.189,82.151,0.97170958]
[1770788279720,0.91673065,82.189,82.161,0.97170958]
[1770788280299,0.91673065,82.199,82.171,0.97170958]
[1770788280499,0.91673065,82.179,82.147,0.97170958]
[1770788280819,0.91673065,82.179,82.151,0.97170958]
[1770788281320,0.91673065,82.179,82.15,9.76493007]
[1770788281321,0.91673065,82.179,82.153,0.97170958]
[1770788282909,0.91673065,82.177,82.14,9.76493007]
[1770788283114,0.91673065,82.149,82.11,9.76493007]
[1770788283306,0.91673065,82.149,82.113,0.97170958]
[1770788283610,0.91673065,82.148,82.112,12.17848791]
[1770788284415,0.91673065,82.148,82.121,0.97170958]
[1770788284723,0.91673065,82.148,82.113,0.97170958]
[1770788285421,0.91673065,82.139,82.107,12.17914399]
[1770788285608,0.91673065,82.139,82.111,12.17854593]
[1770788285946,0.91673065,82.139,82.115,0.97170958]
[1770788286122,0.91673065,82.147,82.115,0.97170958]
[1770788286511,0.91673065,82.157,82.121,0.97170958]
[1770788287525,0.91673065,82.149,82.113,0.97170958]
[1770788287705,0.91673065,82.149,82.122,12.17700494]
[1770788288519,0.91673065,82.149,82.122,13.14871452]
[1770788289522,0.91673065,82.149,82.112,30.44586929]
[1770788289523,0.91673065,82.139,82.112,0.97170958]
[1770788289820,0.91673065,82.139,82.114,0.97170958]
[1770788290203,0.91673065,82.139,82.113,12.1783396]
[1770788291622,0.91673065,82.139,82.114,0.97170958]
[1770788293122,0.91673065,82.139,82.108,12.17906062]
[1770788293305,0.91673065,82.137,82.112,0.97170958]
[1770788294209,0.91673065,82.137,82.113,12.1783396]
[1770788294824,0.91673065,82.119,82.084,0.97170958]
[1770788295004,12.17492938,82.136,82.02,9.86493007]
[1770788295005,0.91673065,82.109,82.076,13.1555392]
[1770788296225,0.91673065,82.109,82.064,37.92]
[1770788296226,12.18056469,82.098,82.067,12.18504698]
[1770788296408,0.91673065,82.089,82.067,12.18504698]
[1770788296609,0.91673065,82.079,82.05,0.97170958]
[1770788296916,12.18056469,82.098,82.054,0.97170958]
[1770788296917,0.91673065,82.087,82.054,0.97170958]
[1770788297114,0.91673065,82.087,82.061,0.97170958]
[1770788298338,0.91673065,82.087,82.026,60.95622086]
[1770788298339,0.91673065,82.109,82.08,9.76493007]
[1770788298627,0.91673065,82.109,82.074,0.97170958]
[1770788299628,0.91673065,82.107,82.07,9.76493007]
[1770788299925,0.91673065,82.089,82.064,12.18557327]
[1770788300427,102.7,82.224,82.07,9.76493007]
[1770788300619,102.7,82.224,82.09,9.76493007]
[1770788300620,9.76493007,82.12,82.09,9.76493007]
[1770788300818,0.9692585,82.109,82.073,0.94410442]
[1770788302221,0.9692585,82.119,82.091,0.94410442]
[1770788302529,0.9692585,82.129,82.098,0.94410442]
[1770788302716,0.9692585,82.128,82.098,0.94410442]
[1770788303825,0.9692585,82.128,82.1,9.76493007]
[1770788304022,0.9692585,82.128,82.1,10.70903449]
[1770788304528,0.9692585,82.128,82.101,12.1801196]
[1770788306123,0.9692585,82.128,82.102,0.97116796]
[1770788306316,10.70415198,82.14,82.102,0.97116796]
[1770788306517,10.70415198,82.14,82.111,0.97116796]
[1770788306833,0.93922191,82.139,82.111,0.97116796]
[1770788307132,0.93922191,82.139,82.103,0.97116796]
[1770788307433,0.93922191,82.129,82.101,12.1801196]
[1770788307814,0.93922191,82.129,82.101,13.15128756]
[1770788308447,0.93922191,82.127,82.096,12.18071944]
[1770788308736,0.93922191,82.127,82.064,60.92737116]
[1770788308737,0.93922191,82.119,82.084,0.97116796]
[1770788309524,0.93922191,82.109,82.085,12.18249375]
[1770788310126,0.93922191,82.109,82.07,9.76493007]
[1770788310127,0.93922191,82.099,82.071,0.97116796]
[1770788311032,0.93922191,82.099,82.081,12.18300901]
[1770788312030,0.93922191,82.099,82.073,0.97116796]
[1770788313219,0.93922191,82.109,82.075,0.97116796]
[1770788314119,0.93922191,82.108,82.075,0.97116796]
[1770788315230,0.93922191,82.108,82.082,12.18293901]
[1770788315535,0.90019573,82.119,82.083,0.9257071]
[1770788315720,0.90019573,82.109,82.083,0.9257071]
[1770788315917,42.61536587,82.13,82.083,0.9257071]
[1770788316151,0.90019573,82.129,82.091,0.9257071]
[1770788317421,0.90019573,82.129,82.093,0.9257071]
[1770788318249,0.90019573,82.119,82.093,0.9257071]
[1770788318554,0.90019573,82.119,82.092,12.18145495]
[1770788319222,0.90019573,82.129,82.095,0.9257071]
[1770788319421,0.90019573,82.119,82.094,12.18115818]
[1770788320955,0.90019573,82.109,82.085,12.18247961]
[1770788321247,0.90019573,82.109,82.082,0.9257071]
[1770788321650,9.76493007,82.13,82.099,0.9257071]
[1770788321952,0.90019573,82.129,82.099,0.9257071]
[1770788322239,0.90019573,82.129,82.092,0.9257071]
[1770788322412,0.90019573,82.129,82.09,9.76493007]
[1770788322413,0.90019573,82.109,82.081,42.64080602]
[1770788322618,0.90019573,82.109,82.082,0.9257071]
[1770788322818,0.90019573,82.119,82.091,0.9257071]
[1770788323036,0.90019573,82.129,82.091,0.9257071]
[1770788327266,0.90019573,82.119,82.082,0.9257071]
[1770788327543,0.90019573,82.109,82.081,30.45771859]
[1770788327755,0.90019573,82.109,82.082,0.9257071]
[1770788328131,0.90019573,82.109,82.088,12.18192427]
[1770788328554,0.90019573,82.109,82.091,12.18145756]
[1770788328854,0.90019573,82.109,82.086,12.18228968]
[1770788329457,0.90019573,82.099,82.077,12.18362561]
[1770788329634,0.90019573,82.099,82.073,13.10998058]
[1770788329827,0.90019573,82.099,82.077,12.18365165]
[1770788330223,0.90019573,82.099,82.082,12.18290303]
[1770788332359,0.95718893,82.106,82.081,0.94022739]
[1770788334353,0.95718893,82.119,82.083,0.94022739]
[1770788336247,0.95718893,82.109,82.083,0.94022739]
[1770788336458,0.95718893,82.107,82.078,0.94022739]
[1770788337975,0.95718893,82.099,82.063,0.94022739]
[1770788338140,9.76493007,82.08,82.056,0.94022739]
[1770788338340,9.76493007,82.08,82.057,12.18665074]
[1770788338557,0.95718893,82.082,82.057,12.18665074]
[1770788338868,0.95718893,82.069,82.04,0.94022739]
[1770788339043,0.95718893,82.069,82.039,38.24]
[1770788339044,0.95718893,82.1,82.061,0.94022739]
[1770788339241,0.95718893,82.1,82.071,0.94022739]
[1770788340959,0.95718893,82.1,82.072,12.18442343]
[1770788341261,0.95718893,82.1,82.072,13.12465082]
[1770788341566,0.95718893,82.1,82.073,0.94022739]
[1770788343264,0.95718893,82.1,82.056,38.3]
[1770788343265,0.95718893,82.113,82.081,0.94022739]
[1770788343565,0.95718893,82.109,82.081,0.94022739]
[1770788344958,0.95718893,82.109,82.083,0.94022739]
[1770788346859,0.95718893,82.116,82.085,0.94022739]
[1770788347944,0.95718893,82.109,82.085,0.94022739]
[1770788348567,0.95718893,82.109,82.086,12.18234534]
[1770788349749,0.95718893,82.109,82.082,0.94022739]
[1770788352278,0.95718893,82.109,82.084,0.94022739]
[1770788352655,0.95718893,82.119,82.084,0.94022739]
[1770788352949,0.95718893,82.119,82.091,0.94022739]
[1770788353953,0.95718893,82.118,82.091,0.94022739]
[1770788354475,0.95718893,82.116,82.087,12.1821904]
[1770788354853,0.95718893,82.116,82.09,12.18161932]
[1770788355178,0.95718893,82.116,82.092,12.18145495]
[1770788357676,0.95718893,82.116,82.089,0.94022739]
[1770788359368,0.95718893,82.116,82.09,12.18175173]
[1770788360277,0.95718893,82.116,82.09,0.96606356]
[1770788360586,36.9,82.141,82.082,12.18293901]
[1770788360587,0.94079225,82.156,82.11,3.65201485]
[1770788360878,0.94079225,82.156,82.121,0.96606356]
[1770788361172,12.17181737,82.157,82.121,0.96606356]
[1770788361173,0.94079225,82.149,82.121,0.96606356]
[1770788361972,0.94079225,82.139,82.113,0.96606356]
[1770788362161,0.94079225,82.139,82.103,0.96606356]
[1770788363160,0.94079225,82.145,82.11,3.65201485]
[1770788363362,0.94079225,82.145,82.111,0.96606356]
[1770788363680,0.94079225,82.145,82.121,0.96606356]
[1770788364191,0.94079225,82.145,82.123,0.94628441]
[1770788366682,0.94079225,82.145,82.122,12.17700494]
[1770788367387,0.95732589,82.161,82.13,3.65201485]
[1770788367566,0.95732589,82.149,82.115,0.94628441]
[1770788367767,0.95732589,82.149,82.12,3.65201485]
[1770788367966,0.95732589,82.149,82.13,3.65201485]
[1770788368603,0.95732589,82.149,82.131,12.17567057]
[1770788370968,0.95732589,82.149,82.128,0.94628441]
[1770788371174,0.95732589,82.149,82.125,13.12271925]
[1770788371396,0.95732589,82.149,82.129,12.17596707]
[1770788371574,0.95732589,82.149,82.125,0.94628441]
[1770788371885,0.95732589,82.149,82.122,12.17687443]
[1770788372273,0.95732589,82.149,82.123,0.94628441]
[1770788372973,0.95732589,82.149,82.124,13.1229928]
[1770788374090,0.95732589,82.148,82.111,0.94628441]
[1770788374266,3.65201485,82.14,82.111,0.94628441]
[1770788374473,0.95732589,82.139,82.111,0.94628441]
[1770788374786,0.95732589,82.148,82.121,0.94628441]
[1770788375375,0.95732589,82.148,82.125,0.94628441]
[1770788377483,0.95732589,82.148,82.124,12.17670839]
[1770788377985,0.95732589,82.148,82.125,0.94628441]
[1770788379191,0.95732589,82.147,82.125,0.94628441]
[1770788379589,0.95732589,82.147,82.12,4.59829926]
[1770788379791,0.95732589,82.147,82.12,3.65201485]
[1770788379991,0.95732589,82.147,82.121,0.94628441]
[1770788381484,0.95732589,82.147,82.123,0.94628441]
[1770788383520,0.95732589,82.147,82.124,13.1229928]
[1770788383680,0.95732589,82.147,82.125,0.94628441]
[1770788387389,0.95732589,82.147,82.11,30.44670102]
[1770788387390,0.95732589,82.145,82.114,0.94628441]
[1770788387707,0.95732589,82.139,82.114,0.94628441]
[1770788387889,0.95732589,82.139,82.118,12.17759355]
[1770788388097,0.95732589,82.145,82.123,0.94628441]
[1770788388904,0.95732589,82.145,82.11,0.94628441]
[1770788389102,0.95732589,82.145,82.121,0.94628441]
[1770788389405,0.95732589,82.159,82.127,0.94628441]
[1770788389786,0.95732589,82.157,82.127,0.94628441]
[1770788391210,0.8698206,82.155,82.127,0.94628441]
[1770788391603,0.8698206,82.149,82.119,12.17731171]
[1770788391801,0.8698206,82.149,82.116,0.88281242]
[1770788393391,12.17315089,82.148,82.116,0.88281242]
[1770788393598,0.8698206,82.147,82.116,0.88281242]
[1770788395311,0.8698206,82.147,82.121,0.88281242]
[1770788395519,12.17344727,82.146,82.122,0.88281242]
[1770788395696,0.8698206,82.145,82.116,0.88281242]
[1770788396614,0.8698206,82.145,82.119,0.88281242]
[1770788397110,0.8698206,82.145,82.122,12.17700494]
[1770788397312,0.8698206,82.145,82.123,0.88281242]
[1770788397522,0.8698206,82.145,82.125,0.88281242]
[1770788399617,0.8698206,82.153,82.127,0.88281242]
[1770788400422,0.8698206,82.151,82.127,0.88281242]
[1770788400710,0.8698206,82.149,82.104,12.1795574]
[1770788400918,0.8698206,82.119,82.094,12.18109213]
[1770788401120,0.8698206,82.119,82.089,0.88281242]
[1770788401121,0.8698206,82.119,82.089,13.06457981]
[1770788401300,0.8698206,82.119,82.09,0.88281242]
[1770788401500,0.8698206,82.139,82.101,0.88281242]
[1770788401816,0.8698206,82.149,82.111,0.88281242]
[1770788402006,0.8698206,82.149,82.115,0.88281242]
[1770788405004,0.8698206,82.149,82.117,0.88281242]
[1770788406926,0.8698206,82.149,82.119,0.88281242]
[1770788407920,0.8698206,82.148,82.119,0.88281242]
[1770788408106,0.8698206,82.139,82.113,12.17829348]
[1770788408306,0.8698206,82.139,82.113,13.0611059]
[1770788408629,0.8698206,82.139,82.113,12.17829348]
[1770788409103,0.8698206,82.139,82.108,12.17908121]
[1770788409306,0.8698206,82.139,82.108,13.06189363]
[1770788409605,0.8698206,82.139,82.109,0.88281242]
[1770788410116,0.8698206,82.139,82.11,12.17878455]
[1770788410418,0.8698206,82.137,82.111,0.88281242]
[1770788412523,0.8698206,82.135,82.11,0.88281242]
[1770788413413,0.8698206,82.135,82.113,0.88281242]
[1770788417721,0.8698206,82.135,82.114,12.17819129]
[1770788417927,0.8698206,82.135,82.115,0.88281242]
[1770788420104,0.8698206,82.135,82.112,12.17838803]
[1770788420302,0.8698206,82.135,82.112,13.11123905]
[1770788420528,0.8698206,82.135,82.113,0.93285102]
[1770788421132,0.8698206,82.135,82.115,12.17791389]
[1770788421330,0.8698206,82.135,82.115,13.11076491]
[1770788421515,0.8698206,82.135,82.116,0.93285102]
[1770788425732,0.93493312,82.129,82.092,0.89778788]
[1770788428312,0.93493312,82.129,82.094,0.89778788]
[1770788428727,0.93493312,82.129,82.101,0.89778788]
[1770788429113,0.93493312,82.138,82.101,0.89778788]
[1770788430434,0.93493312,82.138,82.103,0.89778788]
[1770788431428,0.93493312,82.138,82.105,0.89778788]
[1770788432430,0.93493312,82.138,82.111,0.89778788]
[1770788433432,0.93493312,82.138,82.112,12.17848791]
[1770788433737,0.93493312,82.138,82.113,0.89778788]
[1770788437637,0.93493312,82.156,82.115,0.89778788]
[1770788437835,0.93493312,82.149,82.115,0.89778788]
[1770788439018,3.64832429,82.14,82.115,0.89778788]
[1770788439218,0.93493312,82.139,82.115,0.89778788]
[1770788440229,0.93493312,82.139,82.116,12.17789468]
[1770788440542,0.93493312,82.139,82.117,0.89778788]
[1770788441542,0.93493312,82.139,82.116,12.17789468]
[1770788441937,0.93493312,82.119,82.101,12.18008165]
[1770788442234,0.93493312,82.119,82.095,12.18099479]
[1770788442441,0.93493312,82.119,82.095,0.89778788]
[1770788443562,0.93493312,82.119,82.097,0.89778788]
[1770788443751,0.93493312,82.119,82.096,12.18086143]
[1770788443752,0.93493312,82.109,82.088,0.89778788]
[1770788446138,0.93493312,82.119,82.09,0.89778788]
[1770788446847,0.93493312,82.126,82.091,0.89778788]
[1770788447748,0.93493312,82.126,82.093,0.89778788]
[1770788448454,0.93493312,82.119,82.093,0.89778788]
[1770788449527,0.93493312,82.119,82.092,12.18145495]
[1770788450254,0.93493312,82.119,82.092,0.87056396]
[1770788452550,0.88081901,82.129,82.094,0.87056396]
[1770788455255,0.88081901,82.129,82.096,0.87056396]
[1770788455452,0.88081901,82.129,82.101,0.87056396]
[1770788455749,0.88081901,82.139,82.101,0.87056396]
[1770788457943,0.88081901,82.139,82.11,3.64832429]
[1770788458264,0.88081901,82.149,82.111,0.87056396]
[1770788458568,0.88081901,82.149,82.121,0.87056396]
[1770788459452,0.88081901,82.149,82.123,0.87056396]
[1770788460347,0.88081901,82.139,82.122,12.17700494]
[1770788460533,0.88081901,82.139,82.122,13.0475689]
[1770788461241,0.88081901,82.129,82.101,0.87056396]
[1770788461547,0.88081901,82.129,82.103,0.87056396]
[1770788462548,0.88081901,82.129,82.104,12.17967455]
[1770788462854,0.88081901,82.129,82.105,0.87056396]
[1770788463351,0.88081901,82.129,82.104,12.17967455]
[1770788464829,0.88081901,82.129,82.099,0.87056396]
[1770788465032,0.88081901,82.129,82.1,13.05083192]
[1770788465353,0.88081901,82.129,82.101,0.87056396]
[1770788467246,0.88081901,82.129,82.103,0.87056396]
[1770788467956,0.88081901,82.119,82.098,12.18055853]
[1770788468942,0.88081901,82.119,82.088,0.87056396]
[1770788469143,0.88081901,82.119,82.092,12.18134548]
[1770788469842,0.88081901,82.109,82.081,0.87056396]
[1770788470053,0.88081901,82.109,82.087,12.18207136]
[1770788470951,0.88081901,82.109,82.087,13.05263532]
[1770788471659,0.88081901,82.109,82.075,30.45981374]
[1770788471660,0.88081901,82.109,82.088,0.87056396]
[1770788475061,0.88081901,82.109,82.09,0.87056396]
[1770788479160,0.88081901,82.117,82.09,0.87056396]
[1770788479355,0.88081901,82.129,82.101,0.87056396]
[1770788482758,0.88081901,82.129,82.103,0.91844022]
[1770788485269,0.89571356,82.139,82.105,0.84985446]
[1770788485569,0.89571356,82.129,82.105,0.84985446]
[1770788486163,0.89571356,82.138,82.105,0.84985446]
[1770788486560,0.89571356,82.129,82.101,0.84985446]
[1770788486866,0.89571356,82.134,82.105,0.84985446]
[1770788487367,0.89571356,82.134,82.107,0.84985446]
[1770788488978,0.89571356,82.139,82.107,0.84985446]
[1770788489468,0.89571356,82.139,82.109,0.84985446]
[1770788490569,0.89571356,82.139,82.111,0.84985446]
[1770788492860,0.89571356,82.139,82.112,12.17848791]
[1770788493053,0.89571356,82.139,82.113,0.84985446]
[1770788493475,0.89571356,82.144,82.113,0.84985446]
[1770788494472,0.89571356,82.139,82.113,0.84985446]
[1770788495275,0.89571356,82.139,82.114,12.17819129]
[1770788495477,0.89571356,82.139,82.114,13.02804575]
[1770788496763,0.89571356,82.139,82.115,0.84985446]
[1770788497972,0.89571356,82.139,82.116,12.17789468]
[1770788498272,0.89571356,82.139,82.116,13.02774914]
[1770788498455,0.89571356,82.139,82.117,0.84985446]
[1770788498959,0.89571356,82.139,82.118,12.17759809]
[1770788499556,0.89571356,82.175,82.119,0.84985446]
[1770788499756,0.89571356,82.159,82.119,0.84985446]
[1770788499970,0.89571356,82.149,82.119,0.84985446]
[1770788501486,0.89571356,82.149,82.121,0.84985446]
[1770788501655,0.89571356,82.147,82.12,12.1773015]
[1770788502778,0.89571356,82.147,82.12,13.02715596]
[1770788502978,0.89571356,82.147,82.121,0.84985446]
[1770788503173,30.42672569,82.165,82.121,0.84985446]
[1770788503174,0.89571356,82.158,82.121,0.84985446]
[1770788507561,0.89571356,82.156,82.123,0.84985446]
[1770788507768,0.89571356,82.149,82.123,0.84985446]
[1770788508479,0.89571356,82.164,82.14,3.65063868]
[1770788508685,0.89571356,82.164,82.141,0.84985446]
[1770788509062,0.89571356,82.164,82.135,0.84985446]
[1770788509662,0.89571356,82.164,82.137,0.84985446]
[1770788510882,0.89571356,82.164,82.141,0.77515502]
[1770788511685,0.89571356,82.164,82.142,12.17404007]
[1770788511888,0.89571356,82.164,82.143,0.77515502]
[1770788512299,0.77319599,82.188,82.151,0.77515502]
[1770788512787,0.77319599,82.179,82.151,0.77515502]
[1770788513879,0.77319599,82.179,82.152,12.9477132]
[1770788514077,0.77319599,82.177,82.152,0.77515502]
[1770788515490,0.77319599,82.177,82.147,0.77515502]
[1770788516095,12.16900311,82.176,82.147,0.77515502]
[1770788516266,0.77319599,82.169,82.143,12.17389187]
[1770788517184,0.77319599,82.169,82.146,0.77515502]
[1770788520292,0.77319599,82.18,82.151,0.77515502]
[1770788520490,0.77319599,82.191,82.161,0.77515502]
[1770788520700,0.77319599,82.191,82.171,0.77515502]
[1770788521086,0.77319599,82.191,82.161,0.77515502]
[1770788521984,0.77319599,82.189,82.161,0.77515502]
[1770788522196,0.77319599,82.179,82.149,0.77515502]
[1770788523201,0.77319599,82.179,82.151,12.17256115]
[1770788524269,0.77319599,82.177,82.143,0.77515502]
[1770788524475,0.77319599,82.169,82.143,0.77515502]
[1770788524775,0.77319599,82.169,82.138,0.77515502]
[1770788526117,0.77319599,82.169,82.141,0.77515502]
[1770788528177,0.77319599,82.169,82.142,12.17404007]
[1770788528377,0.77319599,82.169,82.143,0.77515502]
[1770788529601,0.77319599,82.169,82.151,0.77515502]
[1770788534789,0.77319599,82.174,82.151,0.77515502]
[1770788535302,0.77319599,82.174,82.142,0.77515502]
[1770788537507,0.77319599,82.172,82.142,0.77515502]
[1770788539502,0.77319599,82.17,82.142,0.77515502]
[1770788540689,0.77319599,82.17,82.143,12.17389187]
[1770788540891,0.77319599,82.17,82.144,0.76705403]
[1770788542094,0.77319599,82.17,82.146,0.76705403]
[1770788546804,0.73157454,82.175,82.151,0.7552081]
[1770788548797,30.41799754,82.189,82.151,0.7552081]
[1770788548798,12.90087383,82.174,82.151,0.7552081]
[1770788549121,0.73157454,82.173,82.151,0.7552081]